fUSD/lending_fUSD_20260205
["ID","MTS","AMOUNT","RATE_DAILY","PERIOD"]
[404557650,1770288645685,-500.0,0.00017999,2]
[404557651,1770288645694,-500.0,0.00017999,2]
[404557652,1770288645703,-500.0,0.00017999,2]
[404557653,1770288645712,-500.0,0.00017999,2]
[404557654,1770288645721,-448.31,0.00017999,2]
[404557655,1770288645730,-300.0,0.00017999,2]
[404557656,1770288645739,-666.0,0.00017999,2]
[404557657,1770288645749,-102994.39571125,0.00018,2]
[404557658,1770288645758,-101231.95626874,0.00018,2]
[404557659,1770288645767,-2664792.32694169,0.00018,2]
[404557696,1770288646863,-500.0,9.964e-05,2]
[404557697,1770288646872,-504.09113021,0.00010238,2]
[404557698,1770288646881,-10885.15097262,0.00018,2]
[404557699,1770288646895,-1308.51258046,0.00018,2]
[404557700,1770288647106,-11668.97243302,0.00018,2]
[404557701,1770288647118,-25000.0,0.00018,2]
[404557702,1770288647133,-1809.16359962,0.00018,2]
[404557703,1770288647143,-1036.5976,0.00018,2]
[404557704,1770288647157,-619.08822853,0.00018,2]
[404557705,1770288647168,-1502.9272,0.00018,2]
[404557706,1770288647178,-1976.125,0.00018,2]
[404557707,1770288647189,-1803.42898507,0.00018,2]
[404557712,1770289623420,500.0,0.0002,30]
[404558281,1770289808608,168.0,0.000204,120]
[404558294,1770289832691,-192.18,9.534e-05,2]
[404558295,1770289832701,-162.82000001,9.55e-05,2]
[404558296,1770289832803,-119.77050552,9.55e-05,2]
[404558297,1770289832814,-150.0,9.561e-05,2]
[404558298,1770289832826,-300.0,9.561e-05,2]
[404558299,1770289832835,-1200.0,9.561e-05,2]
[404558300,1770289832845,-500.0,9.561e-05,2]
[404558301,1770289832856,-183.98915746,9.561e-05,2]
[404558302,1770289832868,-376.95436157,9.561e-05,2]
[404558303,1770289832878,-500.0,9.561e-05,2]
[404558304,1770289832888,-32903.68103261,9.562e-05,2]
[404558305,1770289832899,-258.656489,9.562e-05,2]
[404558306,1770289832911,-258.1214479,9.562e-05,2]
[404558307,1770289832922,-434.30423461,9.562e-05,2]
[404558308,1770289832933,-1707.54897056,9.562e-05,2]
[404558310,1770289838065,-500.0,9.561e-05,2]
[404558311,1770289838075,-500.0,9.561e-05,2]
[404558312,1770289838085,-351.84824209,9.561e-05,2]
[404558313,1770289838097,-148.15175791,9.561e-05,2]
[404558314,1770289838107,-500.0,9.561e-05,2]
[404558315,1770289838117,-500.0,9.561e-05,2]
[404558316,1770289838127,-500.0,9.561e-05,2]
[404558317,1770289838137,-600.0,9.561e-05,2]
[404558318,1770289838148,-706.09880317,9.562e-05,2]
[404558319,1770289838160,-31313.6674559,9.562e-05,2]
[404558320,1770289838172,-931.64019851,9.562e-05,2]
[404558321,1770289838184,-932.44184216,9.562e-05,2]
[404558322,1770289838200,-17520.5198822,9.562e-05,2]
[404558323,1770289838223,-6171.9002892,9.562e-05,2]
[404558415,1770289840221,-150.0,9.535e-05,2]
[404558416,1770289840231,-150.0,9.535e-05,2]
[404558417,1770289840241,-3406861.41935418,9.562e-05,2]
[404558418,1770289840251,-2796.81476798,9.563e-05,2]
[404558419,1770289840262,-4123.3752,9.563e-05,2]
[404558420,1770289840271,-2500.0,9.563e-05,2]
[404558421,1770289840281,-2217.21,9.569e-05,2]
[404558422,1770289840290,-187.98,9.569e-05,2]
[404558423,1770289840299,-150.0,9.59e-05,2]
[404558424,1770289840309,-250.0,9.603e-05,2]
[404558425,1770289840319,-879.22,9.629e-05,2]
[404558426,1770289840329,-251.3953049,9.645e-05,2]
[404558427,1770289840338,-150.99,9.764e-05,2]
[404558428,1770289840348,-150.99,9.764e-05,2]
[404558429,1770289840358,-499.99,9.764e-05,2]
[404558430,1770289840368,-3307.45,9.764e-05,2]
[404558431,1770289840378,-9999.99,9.764e-05,2]
[404558432,1770289840387,-999.99,9.764e-05,2]
[404558433,1770289840397,-9999.99,9.764e-05,2]
[404558434,1770289840406,-9999.99,9.764e-05,2]
[404558435,1770289840416,-4999.99,9.764e-05,2]
[404558436,1770289840427,-299.99,9.764e-05,2]
[404558437,1770289840437,-500.0,9.764e-05,2]
[404558438,1770289840447,-500.0,9.807e-05,2]
[404558439,1770289840456,-3411.90375345,9.833e-05,2]
[404558440,1770289840467,-160.35043239,0.0001,2]
[404558441,1770289840477,-500.0,0.0001,2]
[404558442,1770289840487,-500.0,0.0001,2]
[404558443,1770289840501,-500.0,0.0001,2]
[404558444,1770289840511,-500.0,0.0001,2]
[404558445,1770289840520,-500.0,0.0001,2]
[404558446,1770289840530,-151.0,0.0001,2]
[404558447,1770289840540,-151.0,0.0001,2]
[404558448,1770289840550,-500.0,0.0001,2]
[404558449,1770289840560,-151.0,0.0001,2]
[404558450,1770289840570,-500.0,0.0001,2]
[404558451,1770289840580,-500.0,0.0001,2]
[404558452,1770289840590,-151.0,0.0001,2]
[404558453,1770289840600,-500.0,0.0001,2]
[404558454,1770289840609,-500.0,0.0001,2]
[404558455,1770289840619,-151.0,0.0001,2]
[404558456,1770289840628,-500.0,0.0001,2]
[404558457,1770289840638,-500.0,0.0001,2]
[404558458,1770289840647,-151.0,0.0001,2]
[404558459,1770289840656,-500.0,0.0001,2]
[404558460,1770289840666,-500.0,0.0001,2]
[404558461,1770289840675,-151.0,0.0001,2]
[404558462,1770289840684,-500.0,0.0001,2]
[404558463,1770289840694,-500.0,0.0001,2]
[404558464,1770289840703,-151.0,0.0001,2]
[404558465,1770289840716,-500.0,0.0001,2]
[404558466,1770289840734,-151.0,0.0001,2]
[404558467,1770289840751,-500.0,0.0001,2]
[404558468,1770289840768,-151.0,0.0001,2]
[404558469,1770289840788,-500.0,0.0001,2]
[404558470,1770289840805,-151.0,0.0001,2]
[404558471,1770289840824,-500.0,0.0001,2]
[404558472,1770289840838,-500.0,0.0001,2]
[404558473,1770289840854,-500.0,0.0001,2]
[404558474,1770289840873,-200.0,0.0001,2]
[404558475,1770289840892,-200.0,0.0001,2]
[404558476,1770289840910,-151.0,0.0001,2]
[404558477,1770289840926,-151.0,0.0001,2]
[404558478,1770289840945,-151.0,0.0001,2]
[404558479,1770289840961,-151.0,0.0001,2]
[404558480,1770289840977,-151.0,0.0001,2]
[404558481,1770289841019,-151.0,0.0001,2]
[404558482,1770289841043,-151.0,0.0001,2]
[404558483,1770289841065,-151.0,0.0001,2]
[404558484,1770289841081,-151.0,0.0001,2]
[404558485,1770289841106,-151.0,0.0001,2]
[404558486,1770289841120,-151.0,0.0001,2]
[404558487,1770289841135,-151.0,0.0001,2]
[404558488,1770289841161,-151.0,0.0001,2]
[404558489,1770289841175,-151.0,0.0001,2]
[404558490,1770289841189,-151.0,0.0001,2]
[404558491,1770289841206,-151.0,0.0001,2]
[404558492,1770289841230,-151.0,0.0001,2]
[404558493,1770289841248,-151.0,0.0001,2]
[404558494,1770289841265,-151.0,0.0001,2]
[404558495,1770289841283,-151.0,0.0001,2]
[404558496,1770289841304,-500.0,0.0001,2]
[404558497,1770289841324,-154.53457251,0.0001,2]
[404558498,1770289841344,-379.59384452,0.00010049,2]
[404558499,1770289841362,-250.24316891,0.00010487,2]
[404558500,1770289841380,-250.0,0.00010487,2]
[404558501,1770289841398,-255.0,0.00010517,2]
[404558502,1770289841415,-420.0,0.00010517,2]
[404558503,1770289841433,-1680.0,0.00010517,2]
[404558504,1770289841449,-300.0,0.00010526,2]
[404558505,1770289841465,-293.46607353,0.00010526,2]
[404558506,1770289841481,-250.0,0.00010526,2]
[404558507,1770289841496,-200.0,0.00010548,2]
[404558508,1770289841511,-200.0,0.00010548,2]
[404558509,1770289841526,-500.0,0.00010548,2]
[404558510,1770289841541,-6890.88,0.0001055,2]
[404558511,1770289841556,-5136.20543168,0.000109,2]
[404558512,1770289841572,-5136.20543162,0.000109,2]
[404558513,1770289841587,-500.0,0.00010959,2]
[404558514,1770289841601,-270.21862608,0.00010959,2]
[404558515,1770289841616,-150.0,0.00010959,2]
[404558516,1770289841638,-166.66,0.00010959,2]
[404558517,1770289841656,-166.66,0.00011068,2]
[404558518,1770289841673,-200.0,0.00011096,2]
[404558519,1770289841691,-200.0,0.00011096,2]
[404558520,1770289841706,-502.94499964,0.00011096,2]
[404558521,1770289841723,-25583.849679,0.00011099,2]
[404558522,1770289841739,-25583.84967898,0.00011099,2]
[404558523,1770289841754,-9392.29,0.00011151,2]
[404558524,1770289841770,-166.66,0.00011178,2]
[404558525,1770289841786,-166.66,0.00011288,2]
[404558526,1770289841804,-48765.35394197,0.00011351,2]
[404558527,1770289841819,-166.66,0.00011397,2]
[404558528,1770289841835,-500.0,0.00011409,2]
[404558529,1770289841850,-201.77401449,0.00011409,2]
[404558530,1770289841866,-500.0,0.00011409,2]
[404558531,1770289841881,-150.0,0.00011409,2]
[404558532,1770289841895,-150.0,0.00011409,2]
[404558533,1770289841910,-200.0,0.00011409,2]
[404558534,1770289841926,-25583.84967898,0.00011437,2]
[404558535,1770289841941,-500.0,0.00011464,2]
[404558536,1770289841962,-500.0,0.00011464,2]
[404558537,1770289841980,-150.0,0.00011464,2]
[404558538,1770289841996,-3411.90375345,0.00011487,2]
[404558539,1770289842014,-166.66,0.00011507,2]
[404558540,1770289842031,-500.0,0.00011519,2]
[404558541,1770289842047,-500.0,0.00011519,2]
[404558542,1770289842063,-200.0,0.00011519,2]
[404558543,1770289842080,-433.0,0.00011569,2]
[404558544,1770289842097,-587.0,0.00011569,2]
[404558545,1770289842113,-2351.0,0.00011569,2]
[404558546,1770289842129,-500.0,0.00011573,2]
[404558547,1770289842146,-500.0,0.00011573,2]
[404558548,1770289842162,-563.96761622,0.00011628,2]
[404558549,1770289842177,-500.0,0.00011628,2]
[404558550,1770289842192,-200.0,0.00011644,2]
[404558551,1770289842208,-200.0,0.00011644,2]
[404558552,1770289842221,-500.0,0.00011683,2]
[404558553,1770289842237,-580.01386771,0.00011738,2]
[404558554,1770289842252,-5136.20543162,0.00011874,2]
[404558555,1770289842269,-192.18,0.00011918,2]
[404558556,1770289842284,-305.65,0.00011918,2]
[404558557,1770289842302,-200.0,0.00012192,2]
[404558558,1770289842318,-200.0,0.00012192,2]
[404558559,1770289842332,-25583.84967898,0.00012361,2]
[404558560,1770289842347,-152.0,0.00012466,3]
[404558561,1770289842361,-163.85,0.00012538,2]
[404558562,1770289842376,-500.0,0.00012603,2]
[404558563,1770289842391,-736.0,0.00012726,2]
[404558564,1770289842405,-742.0,0.00012726,2]
[404558565,1770289842420,-3292.0,0.00012726,2]
[404558566,1770289842435,-200.0,0.0001274,2]
[404558567,1770289842450,-200.0,0.0001274,2]
[404558568,1770289842476,-250.0,0.00012744,2]
[404558569,1770289842488,-5136.20543162,0.00013079,2]
[404558570,1770289842497,-3411.90375345,0.00013141,2]
[404558571,1770289842507,-152.0,0.00013195,4]
[404558572,1770289842518,-1196.75469076,0.00013196,2]
[404558573,1770289842528,-25583.84967898,0.00013284,2]
[404558574,1770289842538,-200.0,0.00013288,2]
[404558575,1770289842547,-200.0,0.00013288,2]
[404558576,1770289842557,-9943.41866852,0.00013407,2]
[404558577,1770289842569,-26240.83918648,0.00013407,2]
[404558579,1770289842897,-46291.95075099,0.00013407,2]
[404558580,1770289842992,-2796.81476797,0.00013682,2]
[404558581,1770289843015,-500.0,0.00013698,2]
[404558582,1770289843027,-500.0,0.00013698,2]
[404558583,1770289843039,-500.0,0.00013698,2]
[404558584,1770289843050,-457.99797698,0.00013698,2]
[404558585,1770289843061,-500.0,0.00013698,2]
[404558586,1770289843077,-500.0,0.00013698,2]
[404558587,1770289843087,-611.74702431,0.00013698,2]
[404558588,1770289843104,-438.26710356,0.00013698,2]
[404558589,1770289843115,-500.0,0.00013698,2]
[404558590,1770289843126,-500.0,0.00013698,2]
[404558591,1770289843137,-500.0,0.00013698,2]
[404558592,1770289843150,-500.0,0.00013698,2]
[404558593,1770289843160,-500.0,0.00013698,2]
[404558594,1770289843171,-500.0,0.00013698,2]
[404558595,1770289843182,-500.0,0.00013698,2]
[404558596,1770289843192,-500.0,0.00013698,2]
[404558597,1770289843202,-500.0,0.00013698,2]
[404558598,1770289843213,-500.0,0.00013698,2]
[404558599,1770289843223,-500.0,0.00013698,2]
[404558600,1770289843234,-500.0,0.00013698,2]
[404558601,1770289843244,-500.0,0.00013698,2]
[404558602,1770289843255,-500.0,0.00013698,2]
[404558603,1770289843265,-500.0,0.00013698,2]
[404558604,1770289843276,-500.0,0.00013698,2]
[404558605,1770289843288,-351.5182,0.00013698,2]
[404558606,1770289843298,-1592.82,0.00013699,2]
[404558607,1770289843308,-200.0,0.00013836,2]
[404558608,1770289843320,-200.0,0.00013836,2]
[404558609,1770289843331,-152.0,0.00013924,5]
[404558610,1770289843341,-1046.0,0.00013998,2]
[404558611,1770289843352,-4609.0,0.00013999,2]
[404558612,1770289843363,-160.0,0.00014022,2]
[404558613,1770289843373,-481.59966931,0.00014083,2]
[404558614,1770289843383,-25583.84967898,0.00014207,2]
[404558615,1770289843394,-5136.20543162,0.00014284,2]
[404558616,1770289843405,-192.18,0.00014301,2]
[404558617,1770289843415,-500.0,0.00014329,2]
[404558618,1770289843426,-1592.82,0.00014384,2]
[404558619,1770289843437,-200.0,0.00014384,2]
[404558620,1770289843452,-200.0,0.00014384,2]
[404558621,1770289843463,-500.0,0.000146,2]
[404558622,1770289843474,-500.0,0.000146,2]
[404558623,1770289843485,-500.0,0.000146,2]
[404558624,1770289843495,-173.07272258,0.000146,2]
[404558625,1770289843506,-500.0,0.000146,2]
[404558626,1770289843517,-500.0,0.000146,2]
[404558627,1770289843527,-500.0,0.000146,2]
[404558628,1770289843540,-500.0,0.000146,2]
[404558629,1770289843551,-500.0,0.000146,2]
[404558630,1770289843562,-500.0,0.000146,2]
[404558633,1770289843576,-500.0,0.000146,2]
[404558634,1770289843587,-500.0,0.000146,2]
[404558635,1770289843597,-500.0,0.000146,2]
[404558636,1770289843608,-500.0,0.000146,2]
[404558637,1770289843619,-500.0,0.000146,2]
[404558638,1770289843630,-500.0,0.000146,2]
[404558639,1770289843641,-500.0,0.000146,2]
[404558641,1770289843652,-152.0,0.00014653,6]
[404558644,1770289843663,-150.0,0.00014681,2]
[404558647,1770289843673,-6890.88,0.0001477,2]
[404558649,1770289843684,-3411.90375345,0.00014795,2]
[404558650,1770289843694,-200.0,0.00014932,2]
[404558652,1770289843704,-200.0,0.00014932,2]
[404558653,1770289843715,-152.62,0.00015,2]
[404558654,1770289843726,-1592.82,0.00015068,2]
[404558655,1770289843736,-25583.84967898,0.0001513,2]
[404558656,1770289843748,-1000.0,0.00015148,2]
[404558657,1770289843759,-1000.0,0.00015148,2]
[404558658,1770289843769,-500.0,0.00015148,2]
[404558659,1770289843780,-347.37162909,0.00015148,2]
[404558660,1770289843793,-1000.0,0.00015276,2]
[404558661,1770289843809,-1410.42,0.00015338,2]
[404558662,1770289843822,-1410.42,0.00015366,2]
[404558663,1770289843835,-152.0,0.00015382,7]
[404558664,1770289843846,-1410.42,0.00015394,2]
[404558665,1770289843856,-1942.0,0.00015398,2]
[404558666,1770289843869,-1410.42,0.00015423,2]
[404558667,1770289843879,-1410.42,0.00015451,2]
[404558668,1770289843890,-1410.42,0.00015479,2]
[404558669,1770289843900,-200.0,0.0001548,2]
[404558670,1770289843911,-200.0,0.0001548,2]
[404558671,1770289843922,-5136.20543162,0.00015489,2]
[404558672,1770289843933,-1410.42,0.00015507,2]
[404558673,1770289843943,-1410.42,0.00015536,2]
[404558674,1770289843954,-1410.42,0.00015564,2]
[404558675,1770289843964,-1410.42,0.00015592,2]
[404558676,1770289843975,-1410.42,0.0001562,2]
[404558677,1770289843986,-1410.42,0.00015649,2]
[404558678,1770289843997,-1410.42,0.00015677,2]
[404558679,1770289844008,-1500.0,0.00015696,2]
[404558680,1770289844019,-1500.0,0.00015696,2]
[404558681,1770289844030,-1410.42,0.00015705,2]
[404558682,1770289844041,-305.65,0.00015708,2]
[404558683,1770289844052,-1410.42,0.00015733,2]
[404558684,1770289844063,-152.0173956,0.00015752,2]
[404558685,1770289844076,-1592.82,0.00015753,2]
[404558686,1770289844087,-1410.42,0.00015762,2]
[404558687,1770289844097,-1410.42,0.0001579,2]
[404558688,1770289844109,-500.0,0.00015793,2]
[404558689,1770289844119,-1410.42,0.00015818,2]
[404558690,1770289844130,-1410.42,0.00015846,2]
[404558691,1770289844141,-1410.42,0.00015875,2]
[404558692,1770289844152,-990.55073207,0.0001596,2]
[404558693,1770289844163,-200.744485,0.00016,2]
[404558694,1770289844178,-200.0,0.00016028,2]
[404558695,1770289844189,-200.0,0.00016028,2]
[404558696,1770289844199,-25583.84967898,0.00016054,2]
[404558697,1770289844210,-152.0,0.00016111,8]
[404558698,1770289844221,-293.532683,0.00016117,7]
[404558699,1770289844231,-578.20924308,0.00016125,2]
[404558700,1770289844243,-721.12765535,0.00016125,2]
[404558701,1770289844254,-2000.0,0.00016125,2]
[404558702,1770289844264,-2000.0,0.00016125,2]
[404558703,1770289844275,-1428.38747117,0.00016125,2]
[404558704,1770289844286,-2000.0,0.00016125,2]
[404558705,1770289844296,-174.61919141,0.00016125,2]
[404558706,1770289844306,-2000.0,0.00016125,2]
[404558707,1770289844317,-2000.0,0.00016125,2]
[404558708,1770289844328,-250.0,0.00016125,2]
[404558709,1770289844339,-2000.0,0.00016125,2]
[404558710,1770289844350,-2000.0,0.00016125,2]
[404558711,1770289844365,-250.0,0.00016125,2]
[404558712,1770289844375,-2000.0,0.00016125,2]
[404558713,1770289844386,-250.0,0.00016125,2]
[404558714,1770289844396,-2000.0,0.00016125,2]
[404558715,1770289844407,-199.92628631,0.00016125,2]
[404558716,1770289844417,-2000.0,0.00016125,2]
[404558717,1770289844428,-2000.0,0.00016125,2]
[404558718,1770289844438,-500.0,0.00016125,2]
[404558719,1770289844448,-500.0,0.00016125,2]
[404558720,1770289844458,-500.0,0.00016125,2]
[404558721,1770289844469,-500.0,0.00016125,2]
[404558722,1770289844479,-500.0,0.00016125,2]
[404558723,1770289844488,-500.0,0.00016125,2]
[404558724,1770289844498,-500.0,0.00016125,2]
[404558725,1770289844508,-494.97768813,0.00016125,2]
[404558726,1770289844518,-322.6107,0.00016125,2]
[404558727,1770289844527,-209.40437684,0.00016125,2]
[404558728,1770289844537,-200.0,0.00016125,2]
[404558729,1770289844548,-277.35679052,0.00016125,2]
[404558730,1770289844557,-5000.0,0.00016125,2]
[404558731,1770289844569,-176.28122483,0.00016125,2]
[404558732,1770289844579,-250.0,0.00016125,2]
[404558733,1770289844590,-500.0,0.00016125,2]
[404558734,1770289844600,-512.54322178,0.00016125,2]
[404558735,1770289844610,-250.0,0.00016125,2]
[404558736,1770289844621,-250.0,0.00016125,2]
[404558737,1770289844631,-250.0,0.00016125,2]
[404558738,1770289844641,-250.0,0.00016125,2]
[404558739,1770289844652,-250.0,0.00016125,2]
[404558740,1770289844662,-250.0,0.00016125,2]
[404558741,1770289844673,-250.0,0.00016125,2]
[404558742,1770289844683,-250.0,0.00016125,2]
[404558743,1770289844693,-250.0,0.00016125,2]
[404558744,1770289844704,-250.0,0.00016125,2]
[404558745,1770289844714,-743.50770149,0.00016125,2]
[404558746,1770289844725,-250.0,0.00016125,2]
[404558747,1770289844735,-250.0,0.00016125,2]
[404558748,1770289844746,-250.0,0.00016125,2]
[404558749,1770289844755,-250.0,0.00016125,2]
[404558750,1770289844765,-250.0,0.00016125,2]
[404558751,1770289844776,-250.0,0.00016125,2]
[404558752,1770289844787,-250.0,0.00016125,2]
[404558753,1770289844801,-228.82569288,0.00016125,2]
[404558754,1770289844811,-209.40437684,0.00016125,2]
[404558755,1770289844823,-217.15233878,0.0001618,2]
[404558756,1770289844835,-500.0,0.00016224,2]
[404558757,1770289844846,-225.18697532,0.00016235,2]
[404558758,1770289844856,-1291.24412758,0.00016244,2]
[404558759,1770289844868,-1004.24108191,0.00016244,2]
[404558760,1770289844879,-233.51889341,0.0001629,2]
[404558761,1770289844889,-152.0173956,0.00016315,2]
[404558762,1770289844900,-242.15909246,0.00016345,2]
[404558763,1770289844910,-251.11897888,0.000164,2]
[404558764,1770289844920,-500.0,0.00016437,2]
[404558765,1770289844930,-1592.82,0.00016438,2]
[404558766,1770289844940,-166.57,0.00016443,2]
[404558767,1770289844951,-3411.90375345,0.00016449,2]
[404558768,1770289844961,-260.4103811,0.00016455,2]
[404558769,1770289844971,-270.0455652,0.0001651,2]
[404558770,1770289844982,-280.03725112,0.00016565,2]
[404558771,1770289844991,-200.0,0.00016576,2]
[404558772,1770289845002,-200.0,0.00016576,2]
[404558773,1770289845012,-290.39862941,0.0001662,2]
[404558774,1770289845022,-163.85,0.0001665,2]
[404558775,1770289845033,-1481.23780761,0.00016673,2]
[404558776,1770289845044,-181.08010149,0.00016673,2]
[404558777,1770289845054,-217.15233878,0.00016673,2]
[404558778,1770289845065,-200.0,0.00016673,2]
[404558779,1770289845076,-287.61899177,0.00016673,2]
[404558780,1770289845087,-5000.0,0.00016673,2]
[404558781,1770289845098,-771.01748645,0.00016673,2]
[404558782,1770289845108,-301.1433787,0.00016675,2]
[404558783,1770289845119,-5136.20543162,0.00016695,2]
[404558784,1770289845130,-165.83,0.00016712,2]
[404558785,1770289845140,-152.0,0.0001684,9]
[404558786,1770289845151,-152.0173956,0.00016878,2]
[404558787,1770289845161,-166.55,0.00016885,2]
[404558788,1770289845171,-500.0,0.00016932,2]
[404558789,1770289845182,-25583.84967898,0.00016977,2]
[404558790,1770289845192,-151.0,0.00016988,2]
[404558791,1770289845203,-267.0,0.00016988,2]
[404558792,1770289845213,-200.0,0.00016988,2]
[404558793,1770289845223,-277.537,0.00016988,2]
[404558794,1770289845232,-229.28,0.00016988,2]
[404558795,1770289845242,-196.23,0.00016988,2]
[404558796,1770289845252,-205.99,0.00016988,2]
[404558797,1770289845263,-158.945,0.00016988,2]
[404558798,1770289845272,-250.0,0.00016988,2]
[404558799,1770289845282,-191.693,0.00016988,2]
[404558800,1770289845291,-164.442,0.00016988,2]
[404558801,1770289845301,-212.815,0.00016988,2]
[404558802,1770289845311,-250.0,0.00016988,2]
[404558803,1770289845321,-232.419,0.00016988,2]
[404558804,1770289845331,-171.0,0.00016988,2]
[404558805,1770289845341,-616.445,0.00016988,2]
[404558806,1770289845351,-1411.0,0.00016988,2]
[404558807,1770289845361,-3491.028,0.00016988,2]
[404558808,1770289845371,-1335.0,0.00016988,2]
[404558809,1770289845381,-150.0,0.00016988,2]
[404558810,1770289845392,-1205.0,0.00016988,2]
[404558811,1770289845402,-917.0,0.00016988,2]
[404558812,1770289845412,-1317.0,0.00016988,2]
[404558813,1770289845422,-2466.995,0.00016988,2]
[404558814,1770289845432,-568.607,0.00016988,2]
[404558815,1770289845442,-3254.0,0.00016988,2]
[404558816,1770289845453,-305.65,0.00017114,2]
[404558817,1770289845463,-200.0,0.00017124,2]
[404558818,1770289845473,-200.0,0.00017124,2]
[404558819,1770289845483,-1000.0,0.00017185,2]
[404558820,1770289845493,-1536.04360649,0.00017221,2]
[404558821,1770289845504,-187.78006525,0.00017221,2]
[404558822,1770289845514,-225.18697532,0.00017221,2]
[404558823,1770289845524,-200.0,0.00017221,2]
[404558824,1770289845534,-298.26089446,0.00017221,2]
[404558825,1770289845543,-5000.0,0.00017221,2]
[404558826,1770289845553,-799.54513345,0.00017221,2]
[404558827,1770289845563,-440.0,0.00017243,2]
[404558828,1770289845574,-1000.0,0.0001726,2]
[404558829,1770289845584,-773.71,0.00017365,2]
[404558830,1770289845594,-152.0173956,0.0001744,2]
[404558831,1770289845604,-69249.98978375,0.00017457,2]
[404558832,1770289845615,-93697.6986,0.00017457,2]
[404558833,1770289845625,-951.124593,0.00017464,7]
[404558834,1770289845636,-334.5472959,0.00017494,2]
[404558835,1770289845646,-440.0,0.00017499,2]
[404558836,1770289845656,-440.0,0.00017504,2]
[404558837,1770289845666,-440.0,0.00017534,2]
[404558838,1770289845676,-1000.0,0.00017534,2]
[404558839,1770289845686,-869.18,0.00017562,2]
[404558840,1770289845696,-152.0,0.00017569,10]
[404558841,1770289845706,-440.0,0.00017661,2]
[404558842,1770289845716,-200.0,0.00017672,2]
[404558843,1770289845726,-200.0,0.00017672,2]
[404558844,1770289845736,-440.0,0.00017691,2]
[404558845,1770289845746,-440.0,0.00017692,2]
[404558846,1770289845757,-440.0,0.00017701,2]
[404558847,1770289845767,-440.0,0.00017709,2]
[404558848,1770289845778,-150.0,0.00017726,2]
[404558849,1770289845794,-1962.0,0.00017735,2]
[404558850,1770289845804,-166.57,0.0001774,2]
[404558851,1770289845814,-1592.87721993,0.00017769,2]
[404558852,1770289845823,-194.72792766,0.00017769,2]
[404558853,1770289845835,-233.51889341,0.00017769,2]
[404558854,1770289845846,-200.0,0.00017769,2]
[404558855,1770289845857,-309.29654756,0.00017769,2]
[404558856,1770289845867,-5000.0,0.00017769,2]
[404558857,1770289845877,-829.12830338,0.00017769,2]
[404558858,1770289845888,-150.0,0.00017781,2]
[404558859,1770289845898,-440.0,0.00017783,2]
[404558860,1770289845908,-163.85,0.00017792,2]
[404558861,1770289845918,-1000.0,0.00017808,2]
[404558862,1770289845928,-200.0,0.00017836,2]
[404558863,1770289845938,-440.0,0.00017847,2]
[404558864,1770289845949,-200.0,0.00017855,2]
[404558865,1770289845959,-500.0,0.00017856,2]
[404558866,1770289845970,-500.0,0.00017856,2]
[404558867,1770289845980,-200.0,0.00017856,2]
[404558868,1770289845990,-440.0,0.00017881,2]
[404558869,1770289846000,-25000.0,0.00017891,3]
[404558870,1770289846011,-500.0,0.00017899,2]
[404558871,1770289846022,-25000.0,0.000179,3]